bitfinex/quotes_ETHUSD_20250216
["timestamp","ask_amount","ask_price","bid_price","bid_amount"]
[1739750084768,1.22097037,2661.4,2661.2,3.75761]
[1739750084969,0.283,2661.3,2661.2,3.75761]
[1739750085169,0.40093924,2661.3,2661.2,3.75761]
[1739750085710,0.66793924,2661.3,2661.2,3.75761]
[1739750085874,0.11793924,2661.3,2661.2,3.75761]
[1739750086179,0.283,2661.6,2661.5,3.75727]
[1739750086972,0.833,2661.6,2661.5,3.75727]
[1739750087140,0.55,2661.6,2661.5,3.75727]
[1739750087340,0.283,2661.7,2661.6,3.75713]
[1739750088554,0.55,2661.7,2661.6,3.75713]
[1739750091850,1.1673,2661.7,2661.4,3.75732]
[1739750092048,0.7654,2661.6,2661.4,3.75732]
[1739750092276,0.88490228,2661.6,2661.4,3.75732]
[1739750092866,0.11950228,2661.6,2661.5,3.75727]
[1739750093214,5.623,2661.8,2661.5,3.75727]
[1739750093383,0.55,2661.7,2661.6,3.75713]
[1739750093551,0.66950228,2661.7,2661.6,3.75713]
[1739750093877,0.66950228,2661.7,2661.5,3.75723]
[1739750094852,0.66950228,2661.7,2661.6,3.75713]
[1739750095574,0.11950228,2661.7,2661.6,3.75713]
[1739750095763,0.11950228,2661.7,2661.6,4.58451]
[1739750095993,0.55,2661.7,2661.6,4.58451]
[1739750096181,0.66531577,2661.7,2661.6,4.58451]
[1739750097608,5.34,2661.8,2661.7,3.75699]
[1739750097785,0.283,2662.0,2661.9,3.75671]
[1739750097988,0.833,2662.0,2661.9,3.75671]
[1739750098287,0.94831577,2662.0,2661.9,3.75671]
[1739750099506,0.94831577,2662.0,2661.8,3.75685]
[1739750099507,0.55,2661.9,2661.8,3.75685]
[1739750099904,0.283,2662.0,2661.7,3.75699]
[1739750100082,0.11531577,2661.9,2661.7,7.51388]
[1739750100289,0.11531577,2661.9,2661.7,3.75689]
[1739750100764,0.11531577,2661.9,2661.7,7.51381]
[1739750100967,0.11531577,2661.9,2661.8,3.75685]
[1739750101295,0.11531577,2661.9,2661.7,3.75689]
[1739750101521,0.11531577,2661.9,2661.7,7.51379]
[1739750101658,0.11531577,2661.9,2661.7,3.75689]
[1739750102858,0.11531577,2661.9,2661.8,3.75685]
[1739750103201,0.11531577,2661.9,2661.7,3.75689]
[1739750104619,0.55,2661.7,2661.4,3.75741]
[1739750104812,0.55,2661.7,2661.1,0.7977]
[1739750105013,0.55,2661.7,2661.5,3.75721]
[1739750105220,0.66542648,2661.6,2661.5,3.75721]
[1739750105611,0.55,2661.5,2661.1,0.7977]
[1739750105822,0.55,2661.3,2661.1,3.75773]
[1739750106117,0.94837113,2661.2,2661.1,3.75773]
[1739750106407,0.94837113,2661.2,2660.9,3.75804]
[1739750106610,0.94837113,2661.2,2661.0,3.75789]
[1739750106821,0.94837113,2661.2,2661.1,3.75784]
[1739750107997,0.94837113,2661.2,2660.8,3.75816]
[1739750108320,0.94837113,2661.2,2661.1,3.75784]
[1739750110915,0.94837113,2661.2,2660.9,3.75811]
[1739750110916,0.94837113,2661.2,2660.9,3.75802]
[1739750113100,0.94837113,2661.2,2661.0,3.75798]
[1739750114118,0.94837113,2661.2,2661.1,3.75784]
[1739750114323,0.55,2661.1,2660.9,3.75811]
[1739750114623,1.3285,2661.0,2660.9,3.75805]
[1739750114825,1.4435666,2661.0,2660.9,3.75805]
[1739750114990,0.55,2661.0,2660.9,3.75805]
[1739750116410,0.283,2661.2,2661.1,3.75784]
[1739750116798,0.833,2661.2,2661.1,3.75784]
[1739750124648,0.55,2661.2,2661.1,4.51014]
[1739750125351,0.66497802,2661.2,2661.1,4.51014]
[1739750126906,0.11497802,2661.2,2661.1,4.51014]
[1739750127111,0.283,2661.4,2661.3,3.75756]
[1739750127642,0.833,2661.4,2661.3,3.75756]
[1739750127966,0.283,2661.4,2661.3,3.75756]
[1739750128269,0.55,2661.8,2661.7,3.75692]
[1739750128468,6.173,2661.8,2661.7,3.75692]
[1739750128628,6.28827149,2661.8,2661.7,3.75692]
[1739750129023,6.99932864,2661.8,2661.5,3.75717]
[1739750130082,6.99932864,2661.8,2661.6,3.75703]
[1739750130575,6.99932864,2661.8,2661.5,7.51436]
[1739750130782,6.99932864,2661.8,2661.7,3.75699]
[1739750130944,6.99932864,2661.8,2661.5,3.75717]
[1739750131266,6.99932864,2661.8,2661.5,7.51436]
[1739750131563,6.99932864,2661.8,2661.5,3.75717]
[1739750131867,6.99932864,2661.8,2661.6,3.75701]
[1739750133135,6.99932864,2661.8,2661.5,3.75717]
[1739750133455,6.99932864,2661.8,2661.6,3.75706]
[1739750134581,6.28827149,2661.8,2661.6,3.75706]
[1739750135461,6.28827149,2661.8,2661.7,3.75699]
[1739750137686,6.28827149,2661.8,2661.5,3.75723]
[1739750140259,6.28827149,2661.8,2661.5,7.51443]
[1739750140464,6.28827149,2661.8,2661.5,3.7572]
[1739750140667,6.99932864,2661.8,2661.5,3.7572]
[1739750140875,6.99932864,2661.8,2661.6,3.75711]
[1739750141186,6.28827149,2661.8,2661.6,3.75711]
[1739750141901,6.00527149,2661.8,2661.7,3.75699]
[1739750142104,6.28827149,2661.8,2661.7,3.75699]
[1739750143102,6.28827149,2661.8,2661.6,3.75711]
[1739750143306,6.28827149,2661.8,2661.7,3.75699]
[1739750143498,6.28827149,2661.8,2661.6,3.75711]
[1739750143905,1.3107,2661.7,2661.6,3.75711]
[1739750144074,1.42613756,2661.7,2661.6,3.75711]
[1739750144805,0.94843756,2661.7,2661.6,3.75711]
[1739750145602,0.94843756,2661.7,2661.5,3.75727]
[1739750145906,0.94843756,2661.7,2661.6,3.75713]
[1739750148679,0.833,2661.7,2661.6,3.75713]
[1739750149482,0.833,2661.7,2661.5,3.75718]
[1739750150097,0.833,2661.7,2661.6,3.75713]
[1739750151163,0.833,2661.7,2661.5,3.75718]
[1739750151294,0.833,2661.7,2661.5,7.51436]
[1739750151490,0.833,2661.7,2661.6,3.75713]
[1739750151927,0.55,2661.6,2661.4,3.7573]
[1739750153385,0.55,2661.6,2661.5,3.75727]
[1739750156242,0.55,2661.6,2661.4,3.75739]
[1739750156546,0.55,2661.6,2661.4,7.51472]
[1739750156717,0.55,2661.6,2661.5,3.75727]
[1739750157162,5.89,2661.6,2661.5,3.75727]
[1739750157662,6.00545417,2661.6,2661.5,3.75727]
[1739750160372,4.17e-06,2661.6,2661.5,5.41414993]
[1739750160572,5.34,2662.3,2661.5,5.41414993]
[1739750160573,5.34,2662.3,2662.2,3.75629]
[1739750160942,5.34,2662.3,2662.1,3.75641]
[1739750161297,0.55,2662.2,2662.1,3.75641]
[1739750165006,0.55,2662.2,2662.0,3.75657]
[1739750165161,0.55,2662.2,2662.0,7.51314]
[1739750165904,0.55,2662.2,2662.1,3.75643]
[1739750166109,5.89,2662.2,2662.1,3.75643]
[1739750166600,5.99720759,2662.2,2662.1,3.75643]
[1739750166985,5.44720759,2662.2,2662.1,5.29893]
[1739750167996,5.99720759,2662.2,2662.1,5.29893]
[1739750168829,0.10720759,2662.2,2662.1,5.33649109]
[1739750169024,0.283,2662.3,2662.2,3.75629]
[1739750169555,0.283,2662.3,2662.2,4.54749]
[1739750169764,0.283,2662.3,2662.2,5.38021563]
[1739750170058,0.283,2662.3,2662.2,5.41777307]
[1739750170261,5.34,2662.5,2662.4,3.756]
[1739750170415,5.34,2662.6,2662.5,4.55666]
[1739750170754,5.34,2663.4,2662.9,3.7553]
[1739750171066,5.623,2663.4,2663.2,3.75485]
[1739750171955,0.55,2663.3,2663.2,7.50965]
[1739750172107,0.833,2663.3,2663.2,3.7548]
[1739750173735,0.283,2663.3,2663.2,3.7548]
[1739750174724,0.833,2663.3,2663.2,3.7548]
[1739750174933,5.34,2663.9,2663.2,1.62891]
[1739750175224,0.283,2663.8,2663.2,0.8008]
[1739750175591,0.55,2663.8,2663.5,0.8008]
[1739750175796,0.55,2663.8,2663.6,3.75424]
[1739750177130,0.55,2663.8,2663.5,4.55512]
[1739750177330,0.10823682,2663.7,2663.5,4.55512]
[1739750177528,0.10823682,2663.7,2663.6,3.75431]
[1739750177831,5.34,2663.9,2663.8,3.75403]
[1739750178035,5.89,2663.9,2663.8,3.75403]
[1739750179438,0.55,2663.9,2663.8,3.75403]
[1739750181630,0.55,2663.9,2663.7,3.75416]
[1739750181837,0.55,2663.9,2663.8,3.75403]
[1739750183518,5.34,2664.3,2664.2,3.75347]
[1739750183730,0.282,2664.3,2664.2,3.75347]
[1739750183933,5.34,2664.4,2664.3,3.75333]
[1739750184135,0.97268225,2665.2,2664.7,3.75271]
[1739750184336,3.4634,2665.1,2664.7,3.75268]
[1739750184564,0.44360823,2665.1,2664.7,3.75268]
[1739750184731,0.10898882,2665.0,2664.7,3.75268]
[1739750185058,0.97268225,2665.2,2664.6,3.75287]
[1739750185257,0.10898882,2664.9,2664.7,3.75263]
[1739750185553,0.97268225,2665.2,2664.8,3.75256]
[1739750185724,0.55,2665.1,2664.8,3.75256]
[1739750186124,0.55,2665.1,2664.6,3.75287]
[1739750186327,0.55,2665.1,2664.4,3.75317]
[1739750186547,0.55,2665.1,2664.4,3.75311]
[1739750186861,0.55,2664.9,2664.2,7.50675]
[1739750187061,0.7706,2664.6,2664.2,3.75334]
[1739750188055,0.7706,2664.6,2664.4,3.75316]
[1739750188263,0.55,2664.7,2664.5,3.75294]
[1739750188498,0.55,2664.7,2664.6,3.7529]
[1739750188647,0.282,2664.7,2664.6,3.7529]
[1739750190275,0.7706,2665.4,2665.1,3.75212]
[1739750190438,0.282,2665.3,2665.1,3.75212]
[1739750190636,0.55,2665.2,2665.0,0.7845]
[1739750190832,0.55,2665.2,2665.0,4.53681]
[1739750191267,0.55,2665.2,2665.0,0.7845]
[1739750191643,0.55,2665.2,2665.0,4.53682]
[1739750191948,0.55,2665.2,2665.1,3.7522]
[1739750192276,0.55,2665.2,2665.0,4.53682]
[1739750192767,0.55,2665.3,2665.0,4.53682]
[1739750192946,0.282,2665.2,2665.0,4.53682]
[1739750193936,0.282,2665.2,2665.0,4.53676]
[1739750194136,0.11003342,2665.1,2665.0,4.53676]
[1739750194565,0.11003342,2665.1,2665.0,0.7845]
[1739750194765,0.66003342,2665.1,2664.8,3.75251]
[1739750195157,0.55,2665.1,2664.8,3.75251]
[1739750195360,0.282,2665.2,2664.9,3.75239]
[1739750195536,0.11074046,2665.0,2664.9,3.75239]
[1739750195734,0.55,2665.3,2665.0,3.75234]
[1739750196070,0.39274046,2665.2,2665.1,0.7845]
[1739750196466,0.282,2665.2,2665.1,0.7845]
[1739750196688,0.282,2665.2,2665.0,3.75234]
[1739750199773,0.282,2665.2,2665.0,3.75233]
[1739750202983,0.55,2665.1,2665.0,3.75226]
[1739750203980,0.55,2665.3,2665.1,0.7501]
[1739750204293,0.55,2665.3,2665.1,4.50222]
[1739750204466,0.11111041,2665.2,2665.1,4.50222]
[1739750204872,0.55,2665.3,2665.1,0.7501]
[1739750205255,0.11111041,2665.2,2665.1,0.7501]
[1739750205690,0.55,2665.3,2665.1,0.7501]
[1739750206063,3.7454,2665.4,2665.2,3.75206]
[1739750206385,3.4634,2665.4,2665.3,4.50202]
[1739750207285,4.0134,2665.4,2665.3,4.50202]
[1739750207486,3.4634,2665.4,2665.3,4.50202]
[1739750207705,3.4634,2666.2,2665.9,3.75098]
[1739750208910,0.55,2666.1,2665.4,0.7501]
[1739750209093,0.55,2665.9,2665.5,3.75156]
[1739750210460,0.282,2665.8,2665.5,3.75155]
[1739750211569,0.282,2665.8,2665.4,4.50183]
[1739750213298,0.282,2665.8,2665.4,8.25353]
[1739750213488,0.282,2665.8,2665.4,4.5018]
[1739750213718,3.7454,2665.8,2665.4,4.5018]
[1739750213882,3.7454,2665.8,2665.4,4.50179]
[1739750214281,3.7454,2665.8,2665.5,3.75163]
[1739750214685,0.55,2665.6,2665.5,3.75163]
[1739750215129,0.55,2665.6,2665.2,4.50207]
[1739750215295,0.66147469,2665.6,2665.2,5.627507]
[1739750215501,0.55,2665.6,2665.4,3.75177]
[1739750215827,0.66147469,2665.5,2665.4,3.75177]
[1739750217633,0.55,2665.4,2665.1,3.75219]
[1739750217839,1.3309,2665.7,2665.3,3.75192]
[1739750217998,0.55,2665.5,2665.3,3.75192]
[1739750218436,0.11147469,2665.4,2665.0,0.7629]
[1739750218732,0.55,2665.6,2665.0,1.514451]
[1739750218920,0.11147469,2665.3,2665.2,3.75206]
[1739750219124,0.55,2665.6,2665.4,3.75176]
[1739750219439,0.66147469,2665.5,2665.4,3.75176]
[1739750219736,0.66147469,2665.5,2665.4,4.51466]
[1739750220037,0.55,2665.5,2665.4,4.51466]
[1739750221092,0.66147469,2665.5,2665.4,4.51466]
[1739750221809,0.11147469,2665.5,2665.4,5.3788292]
[1739750222112,3.4634,2665.8,2665.7,3.75135]
[1739750222329,3.4634,2665.8,2665.7,4.50155]
[1739750222541,4.12091569,2665.8,2665.6,3.75141]
[1739750222749,0.55,2665.7,2665.6,3.75141]
[1739750223309,0.65751569,2665.7,2665.6,3.75141]
[1739750225546,0.65751569,2665.7,2665.5,4.50182]
[1739750225916,0.65751569,2665.7,2665.5,8.25339]
[1739750226112,0.65751569,2665.7,2665.6,3.7515]
[1739750227927,0.65751569,2665.7,2665.5,4.50177]
[1739750229072,0.65751569,2665.7,2665.6,3.7515]
[1739750229271,0.55,2665.7,2665.6,3.7515]
[1739750230059,3.4634,2665.8,2665.7,3.75135]
[1739750232775,0.10436402,2666.0,2665.8,3.64226373]
[1739750232953,0.10436402,2666.0,2665.8,3.34660366]
[1739750233673,0.10436402,2666.0,2665.7,4.49022892]
[1739750233874,0.10436402,2666.0,2665.6,3.75136]
[1739750234180,0.10436402,2666.0,2665.6,3.72483148]
[1739750234367,0.55,2665.9,2665.7,3.75128]
[1739750234567,0.55,2665.9,2665.8,3.75121]
[1739750235145,0.55,2665.9,2665.5,4.55363]
[1739750235343,0.55,2665.9,2665.7,3.75133]
[1739750236474,0.55,2665.9,2665.6,3.75139]
[1739750236681,0.55,2665.9,2665.7,3.75127]
[1739750236919,0.55,2665.9,2665.7,7.50256]
[1739750237107,0.55,2665.9,2665.7,3.75127]
[1739750238121,0.55,2665.9,2665.8,3.75121]
[1739750238420,1.02747,2665.9,2665.3,4.55399]
[1739750238618,1.02747,2665.9,2665.1,3.75208]
[1739750238619,0.55,2665.7,2665.1,3.75208]
[1739750238788,0.55,2665.5,2665.1,3.75208]
[1739750238984,0.55,2665.3,2665.1,3.75208]
[1739750239329,0.55,2665.3,2664.8,0.8021]
[1739750239330,0.55,2665.1,2664.7,3.75266]
[1739750239483,4.0134,2665.1,2664.7,3.75266]
[1739750240192,4.0134,2665.1,2664.8,3.75251]
[1739750240605,4.0134,2665.1,2664.6,0.8021]
[1739750240811,4.0134,2665.1,2664.9,3.75237]
[1739750241818,4.0134,2665.1,2665.0,3.75234]
[1739750242189,4.0134,2665.1,2664.9,3.75237]
[1739750242389,4.49087,2665.1,2664.7,3.79024188]
[1739750242589,4.49087,2665.1,2664.9,3.75245]
[1739750243390,4.0134,2665.1,2664.9,3.75245]
[1739750244371,4.0134,2665.1,2665.0,3.75234]
[1739750245072,3.4634,2665.1,2665.0,3.75234]
[1739750245271,3.4634,2665.1,2665.0,4.55444]
[1739750246190,3.4634,2665.1,2665.0,7.55444]
[1739750246393,0.7671,2666.8,2666.3,3.75051]
[1739750246591,0.7671,2666.8,2666.1,3.75077]
[1739750246751,0.7671,2666.8,2666.2,3.75063]
[1739750246952,0.55,2666.7,2666.2,3.75063]
[1739750247581,0.55,2666.7,2665.9,3.75099]
[1739750247882,0.55,2666.5,2665.9,3.75099]
[1739750248585,0.55,2666.5,2665.8,0.833]
[1739750248751,0.55,2666.4,2665.5,3.75155]
[1739750248972,0.55,2666.4,2665.3,3.75185]
[1739750248973,0.55,2666.0,2665.3,3.75185]
[1739750249172,0.55,2665.8,2665.3,3.75185]
[1739750250166,0.55,2665.8,2665.1,3.75209]
[1739750250583,0.55,2665.8,2665.3,0.833]
[1739750250785,0.55,2665.8,2665.5,3.75162]
[1739750251792,0.55,2665.8,2665.5,3.75157]
[1739750252093,0.55,2665.8,2665.4,3.75164]
[1739750252291,0.55,2665.8,2665.3,0.87051251]
[1739750252454,0.282,2665.9,2665.7,3.75135]
[1739750252857,0.282,2665.9,2665.7,3.75126]
[1739750253100,0.832,2665.9,2665.8,4.58421]
[1739750253401,0.282,2666.6,2666.1,3.75068]
[1739750253562,0.55,2666.5,2666.1,3.75068]
[1739750258198,0.55,2666.5,2665.8,0.833]
[1739750258399,1.00782154,2666.5,2665.8,4.58417]
[1739750258771,0.7671,2666.4,2665.8,3.75117]
[1739750258999,0.7671,2666.4,2665.3,4.21414925]
[1739750259000,0.55,2666.1,2665.3,3.75192]
[1739750259317,1.3171,2665.9,2665.4,3.75177]
[1739750259489,0.282,2665.8,2665.5,3.78915187]
[1739750259685,0.282,2665.8,2665.5,3.75164]
[1739750260123,0.282,2665.8,2665.7,3.75135]
[1739750260503,0.832,2665.8,2665.7,3.75135]
[1739750261025,0.55,2665.7,2665.6,3.7515]
[1739750268444,0.282,2665.8,2665.6,3.7515]
[1739750268748,0.282,2665.8,2665.6,3.75148]
[1739750268944,0.282,2665.8,2665.6,3.75142]
[1739750269154,0.282,2665.8,2665.7,3.75135]
[1739750269914,0.282,2665.8,2665.6,3.75142]
[1739750271847,0.55,2665.7,2665.6,3.75142]
[1739750272050,0.282,2665.8,2665.6,3.75142]
[1739750272615,0.282,2665.8,2665.6,3.75141]
[1739750273013,3.4634,2666.0,2665.7,3.75135]
[1739750273236,3.4634,2666.0,2665.9,3.75107]
[1739750274829,3.4634,2666.0,2665.8,4.53689]
[1739750275058,3.4634,2666.0,2665.8,3.75119]
[1739750275242,3.4634,2666.0,2665.8,3.75114]
[1739750275438,3.4634,2666.0,2665.8,7.50228]
[1739750275642,3.4634,2666.0,2665.8,3.75114]
[1739750277155,3.4634,2666.0,2665.9,3.75107]
[1739750287288,3.4634,2666.0,2665.9,4.501298]
[1739750287494,3.4634,2666.0,2665.9,5.320098]
[1739750288471,3.4634,2666.0,2665.9,5.35760472]
[1739750290292,3.4634,2666.0,2665.9,5.320098]
[1739750290889,0.55,2666.5,2666.3,3.75046]
[1739750291103,0.55,2666.5,2666.4,3.75037]
[1739750291870,0.55,2666.5,2666.3,3.75043]
[1739750292502,0.55,2666.5,2666.4,3.75037]
[1739750292730,0.55,2666.5,2666.3,3.75043]
[1739750293991,0.55,2666.5,2666.3,7.50084]
[1739750294195,0.55,2666.5,2666.4,3.75037]
[1739750296294,1.0412,2666.8,2666.5,3.75023]
[1739750296927,0.55,2666.7,2666.4,3.75037]
[1739750297231,0.55,2666.7,2666.4,7.50066]
[1739750297691,0.55,2666.7,2666.4,7.50058]
[1739750297897,0.55,2666.7,2666.4,7.50059]
[1739750298098,0.55,2666.7,2666.0,0.8178]
[1739750298305,0.55,2666.7,2666.2,3.75063]
[1739750298512,0.55,2666.7,2666.4,3.75033]
[1739750298838,0.55,2666.5,2666.4,3.75033]
[1739750299440,0.64172587,2666.5,2666.4,3.75033]
[1739750300428,0.64172587,2666.5,2666.3,3.75051]
[1739750300731,0.64172587,2666.5,2666.3,7.50094]
[1739750301040,0.64172587,2666.5,2666.4,3.75037]
[1739750303907,0.09172587,2666.5,2666.4,3.75037]
[1739750304122,3.4634,2666.7,2666.4,4.125407]
[1739750304358,0.09189133,2666.6,2666.5,3.75016]
[1739750305152,3.4634,2666.7,2666.6,3.75009]
[1739750305354,4.0134,2666.7,2666.6,3.75009]
[1739750305754,4.10529133,2666.7,2666.6,3.75009]
[1739750306143,4.10529133,2666.7,2666.4,1.149637]
[1739750306347,4.10529133,2666.7,2666.4,3.75029]
[1739750306557,0.55,2666.6,2666.3,3.75041]
[1739750306734,1.3302,2666.6,2666.3,3.75041]
[1739750307123,0.09189133,2666.5,2666.3,3.75041]
[1739750307469,0.09189133,2666.5,2666.4,3.75037]
[1739750307780,0.55,2666.6,2666.4,3.75037]
[1739750307934,0.64189133,2666.5,2666.4,3.75037]
[1739750308135,0.09189133,2666.5,2666.4,3.75037]
[1739750308350,3.4634,2666.7,2666.4,3.75037]
[1739750308654,3.4634,2666.7,2666.3,3.75044]
[1739750308655,0.09189133,2666.5,2666.3,3.75044]
[1739750308856,0.55,2666.6,2666.3,3.75044]
[1739750309075,0.09189133,2666.4,2666.3,7.50088]
[1739750309250,0.55,2666.6,2666.3,7.50088]
[1739750309556,0.55,2666.6,2666.3,3.75044]
[1739750309722,0.09189133,2666.5,2666.3,3.75044]
[1739750309923,0.55,2666.7,2666.3,3.75044]
[1739750310152,0.55,2666.7,2666.3,7.50088]
[1739750310457,0.55,2666.7,2666.4,3.75033]
[1739750311665,0.55,2666.7,2666.3,3.75039]
[1739750313026,0.55,2666.7,2666.4,3.75033]
[1739750313969,0.55,2666.7,2666.1,3.75077]
[1739750314152,0.55,2666.7,2666.1,4.2809598]
[1739750314356,0.0912412,2666.6,2666.2,3.75065]
[1739750314927,0.7802,2666.5,2666.2,3.75065]
[1739750315129,0.64123569,2666.4,2665.8,0.8009]
[1739750315371,4.10463569,2666.4,2666.0,3.75083]
[1739750316060,4.59311926,2666.4,2665.8,0.8009]
[1739750316387,0.7802,2666.3,2665.6,3.75139]
[1739750316675,0.55,2666.0,2665.6,3.75139]
[1739750316835,0.281,2665.9,2665.5,3.75155]
[1739750317038,0.36878381,2665.9,2665.6,3.75141]
[1739750317264,0.36878381,2665.9,2665.5,3.75155]
[1739750317265,0.281,2665.9,2665.5,3.75155]
[1739750317484,0.08778381,2665.8,2665.5,3.75155]
[1739750317635,0.281,2665.9,2665.5,3.75155]
[1739750317838,0.281,2665.9,2665.6,3.7515]
[1739750318070,0.08778381,2665.8,2665.6,3.7515]
[1739750318574,0.281,2665.9,2665.6,3.7515]
[1739750318963,0.08778381,2665.8,2665.6,3.7515]
[1739750319590,0.281,2665.9,2665.6,3.7515]
[1739750319954,0.08778381,2665.8,2665.6,3.7515]
[1739750320470,0.281,2665.9,2665.6,3.7515]
[1739750320869,0.08778381,2665.8,2665.6,3.7515]
[1739750321279,0.281,2665.9,2665.7,3.75123]
[1739750321580,0.281,2665.9,2665.6,3.7515]
[1739750321756,0.831,2665.9,2665.8,3.75121]
[1739750322176,0.91870106,2665.9,2665.5,0.03751035]
[1739750322376,0.91870106,2665.9,2665.6,3.7515]
[1739750322574,0.831,2665.9,2665.7,3.75125]
[1739750322777,0.831,2665.9,2665.8,3.75121]
[1739750323364,0.821,2666.5,2666.0,3.75086]
[1739750323569,3.7444,2666.4,2666.0,3.75086]
[1739750323791,0.55,2666.3,2666.0,3.75086]
[1739750324157,0.08770106,2666.2,2666.0,3.75086]
[1739750324559,0.55,2666.3,2666.0,3.75086]
[1739750324802,0.08770106,2666.1,2666.0,3.75086]
[1739750325007,0.55,2666.3,2666.0,3.75086]
[1739750325187,0.831,2666.2,2666.1,3.75079]
[1739750325494,0.281,2666.2,2666.1,3.75079]
[1739750325991,0.281,2666.2,2665.9,3.75106]
[1739750326179,0.55,2666.0,2665.7,3.75124]
[1739750326685,4.0134,2666.0,2665.7,3.75124]
[1739750326997,4.0134,2666.0,2665.6,3.75147]
[1739750327296,4.0134,2666.0,2665.6,3.75149]
[1739750327498,4.0134,2666.0,2665.5,3.75153]
[1739750327698,0.55,2665.8,2665.5,3.75153]
[1739750328472,0.55,2665.8,2665.5,3.75163]
[1739750328858,0.821,2665.7,2665.5,3.75163]
[1739750333091,0.55,2665.6,2665.3,3.75186]
[1739750333590,0.55,2665.6,2665.3,3.75184]
[1739750334686,0.55,2665.4,2665.3,3.75184]
[1739750335169,0.63753559,2665.4,2665.3,3.75184]
[1739750335372,0.63753559,2665.4,2665.1,3.7522]
[1739750335907,0.55,2665.4,2665.2,3.75206]
[1739750336083,0.831,2665.4,2665.0,4.58563]
[1739750336287,0.831,2665.4,2665.1,3.75219]
[1739750336677,0.7939,2665.3,2665.1,3.75219]
[1739750337006,0.08753559,2665.2,2665.1,3.75219]
[1739750337425,0.7939,2665.3,2665.0,7.50458]
[1739750337609,0.08753559,2665.2,2665.0,3.75225]
[1739750337915,0.08753559,2665.2,2665.1,3.7522]
[1739750338124,0.7939,2665.3,2665.1,3.7522]
[1739750338293,0.08753559,2665.2,2665.1,3.7522]
[1739750338696,0.831,2665.4,2665.2,3.75192]
[1739750338891,0.831,2665.4,2665.1,3.7522]
[1739750339113,0.08691755,2665.3,2665.2,3.75206]
[1739750339321,0.36791755,2665.3,2665.2,4.51116]
[1739750339622,0.281,2665.3,2665.2,5.337496]
[1739750340378,0.281,2665.6,2665.5,3.75157]
[1739750340778,0.36795619,2665.6,2665.5,3.75157]
[1739750341397,0.281,2665.6,2665.5,3.75157]
[1739750341779,0.36795619,2665.6,2665.5,3.75157]
[1739750342424,0.281,2665.6,2665.5,3.75157]
[1739750342796,0.281,2665.6,2665.4,3.75168]
[1739750344090,0.55,2665.5,2665.3,3.75188]
[1739750344432,0.08700034,2665.4,2665.1,3.75215]
[1739750345024,0.55,2665.5,2665.1,3.75215]
[1739750345188,0.55,2665.5,2665.1,3.75212]
[1739750345398,0.55,2665.3,2664.8,0.7591]
[1739750345731,0.7939,2665.2,2664.9,7.50477]
[1739750345936,0.7939,2665.2,2665.0,3.75232]
[1739750346134,1.3439,2665.5,2665.2,3.75206]
[1739750346287,0.08700034,2665.4,2665.2,3.75206]
[1739750346488,0.55,2665.3,2665.2,3.75206]
[1739750346788,3.4634,2665.7,2665.3,3.75192]
[1739750346982,0.281,2665.4,2665.3,3.75192]
[1739750349725,0.36793963,2665.4,2665.3,3.75192]
[1739750352355,0.08693963,2665.4,2665.3,5.307118]
[1739750352562,0.281,2665.6,2665.5,3.75164]
[1739750352851,0.36808312,2665.6,2665.5,3.75164]
[1739750353251,0.36808312,2665.6,2665.3,0.8048]
[1739750353462,0.36808312,2665.6,2665.4,3.75167]
[1739750353828,0.281,2665.6,2665.4,3.75167]
[1739750354618,0.08708312,2665.5,2665.4,3.75167]
[1739750354818,0.281,2665.6,2665.4,3.75167]
[1739750355051,0.08708312,2665.5,2665.4,3.75167]
[1739750355214,0.281,2665.6,2665.4,3.75167]
[1739750355414,0.281,2665.6,2665.5,3.75164]
[1739750357158,3.4634,2665.7,2665.5,3.75164]
[1739750357318,3.7444,2665.7,2665.5,3.75164]
[1739750357518,0.08708312,2665.6,2665.5,7.50328]
[1739750358857,0.08708312,2665.6,2665.5,3.75164]
[1739750361431,0.08708312,2665.6,2665.4,3.75177]
[1739750361648,0.08708312,2665.6,2665.4,7.50346]
[1739750362868,0.08708312,2665.6,2665.5,3.75164]
[1739750363868,0.08708312,2665.6,2665.3,3.75178]
[1739750364055,0.08708312,2665.6,2665.2,3.75206]
[1739750364251,0.08708312,2665.6,2665.2,4.882978]
[1739750364453,3.7444,2665.7,2665.3,3.75192]
[1739750364756,0.08715487,2665.5,2665.3,3.75192]
[1739750364918,3.7444,2665.7,2665.3,3.75192]
[1739750365123,0.08715487,2665.4,2665.3,3.75192]
[1739750365356,3.7444,2665.7,2665.3,3.75192]
[1739750365957,3.7444,2665.7,2665.3,3.7518]
[1739750366161,0.7645,2665.5,2665.2,3.75204]
[1739750366367,0.7645,2665.5,2665.0,3.75224]
[1739750366572,0.08715487,2665.4,2665.1,3.75217]
[1739750366716,0.7645,2665.5,2665.1,3.75217]
[1739750367153,0.08719902,2665.4,2665.2,3.75206]
[1739750367566,0.7645,2665.5,2665.2,3.75206]
[1739750367934,0.08719902,2665.4,2665.2,3.75206]
[1739750368272,0.7645,2665.5,2665.2,3.75206]
[1739750368456,0.08719902,2665.3,2665.2,3.75206]
[1739750368624,0.7645,2665.5,2665.2,3.75206]
[1739750368826,0.08719902,2665.3,2665.2,3.75206]